[Event "44th Chess Olympiad Open 2022"]
[Site "Chennai"]
[Date "2022.07.30"]
[Round "2.34"]
[White "Lim, Zhuo Ren"]
[Black "Pechac, Jergus"]
[Result "0-1"]
[WhiteElo "2318"]
[BlackElo "2594"]
[Annotator "TA"]
[PlyCount "72"]
[EventDate "2022.??.??"]
[TimeControl "60"]

{[%evp 12,72,20,14,0,9,0,0,0,10,19,0,18,0,0,0,20,0,0,0,0,0,0,0,0,0,0,0,6,6,4,8,
4,-16,-7,-10,-4,-33,-33,-54,-26,-75,-89,-80,-42,-40,-40,-47,-29,-36,-39,-260,
-260,-220,-214,-408,-345,-579,-571,-550,-518,-471,-383]} 1. d4 {[%emt 0:00:06]}
Nf6 {[%emt 0:00:07]} 2. Nf3 {[%emt 0:00:19]} d5 {[%emt 0:00:07]} 3. c4 {
[%emt 0:00:22]} e6 {[%emt 0:00:06]} 4. Nc3 {[%emt 0:03:56]} Bb4 {[%emt 0:00:26]
} 5. Qa4+ {[%emt 0:10:18]} Nc6 {[%emt 0:00:08]} 6. e3 {[%emt 0:00:35]} O-O {
[%emt 0:00:08]} 7. Bd2 {[%emt 0:00:50]} dxc4 {[%emt 0:00:12] D38: Queen's
Gambit Declined: Ragozin Defence (4 Nf3 Bb4).} 8. Bxc4 {[%emt 0:00:40]} Bd6 {
[%emt 0:00:07]} 9. Qc2 {[%emt 0:02:35]} e5 {[%emt 0:00:07] The position is
equal.} 10. dxe5 {[%emt 0:00:46]} Nxe5 {[%emt 0:00:07]} 11. Nxe5 {[%emt 0:00:
00]} Bxe5 {[%emt 0:00:07]} 12. f4 {[%emt 0:01:08]} Bxc3 {[%emt 0:00:06]} 13.
Bxc3 {[%emt 0:00:09]} g6 $5 {[%emt 0:00:04] [#] An interesting side line.} 14.
Rd1 $146 {[%emt 0:17:42]} ({Predecessor:} 14. e4 Re8 15. Bd3 Nxe4 16. Bxe4 Bf5
17. Be5 Bxe4 18. Qxe4 f6 19. O-O fxe5 20. fxe5 {½-½ (40) Xiong, J (2700)
-Caruana,F (2800) Saint Louis 2021}) 14... Qe7 {[%emt 0:00:30]} 15. Bxf6 {
[%emt 0:00:30]} Qxf6 {[%emt 0:00:08]} 16. O-O {[%emt 0:00:18]} Bg4 {[%emt 0:03:
35]} 17. Rde1 {[%emt 0:07:40]} Rad8 {[%emt 0:03:19]} 18. h3 {[%emt 0:02:07]}
Bd7 {[%emt 0:02:00]} 19. e4 {[%emt 0:09:02]} Qd4+ {[%emt 0:00:00]} 20. Kh2 {
[%emt 0:02:35]} Bc6 {[%emt 0:00:08]} 21. Re2 {[%emt 0:03:43]} Kg7 {[%emt 0:05:
54]} 22. Rf3 {[%emt 0:04:38]} Rfe8 {[%emt 0:02:05][%cal Rc6e4,Yf8e8,Ye8d8,
Yd8d4]} 23. Rd3 {[%emt 0:03:52]} Qf6 {[%emt 0:00:06]} 24. Rxd8 {[%emt 0:00:19]}
(24. Rf3 {with more complications.} Rd4 25. e5 Qf5 26. Bd3) 24... Rxd8 {
[%emt 0:00:08]} 25. g3 {[%emt 0:01:00]} Rd4 {[%emt 0:03:42]} 26. Bd5 {[%emt 0:
04:42]} (26. h4 $11 {was preferrable.}) 26... Bxd5 $17 {[%emt 0:00:20]} 27.
exd5 {[%emt 0:00:02] Endgame KQR-KQR} Qd6 {[%emt 0:04:30]} ({Don't play} 27...
Rxd5 $6 28. Qxc7 b6 29. Qxa7 $11) 28. Qc3 {[%emt 0:02:21]} Qxd5 {[%emt 0:00:07]
} 29. Qxc7 {[%emt 0:00:46]} h5 {[%emt 0:00:00]} (29... Rc4 {seems wilder.} 30.
Qe7 Rc1 31. Rg2 h5) 30. Qc3 {[%emt 0:08:56] [#] Black must now prevent Rd2.}
Kh7 $40 {[%emt 0:00:34] Black attacks.} 31. Qb3 $2 {[%emt 0:00:42] White does
not recover from this.} (31. Qc7 $15) 31... Qxb3 $19 {[%emt 0:00:35]} 32. axb3
{[%emt 0:00:03]} Rd3 {[%emt 0:00:12]} 33. h4 $2 {[%emt 0:08:18]} (33. b4 {
only move.}) 33... Rxb3 {[%emt 0:01:01]} 34. Kh3 $2 {[%emt 0:00:08] [#]} (34.
Rf2) 34... Kg7 {[%emt 0:00:00] Black is clearly winning.} 35. Rf2 {[%emt 0:00:
18]} Kf6 {[%emt 0:00:30]} 36. Re2 {[%emt 0:00:07]} a5 {[%emt 0:00:13] Weighted
Error Value: White=0.36/ Black=0.04 (flawless)} 0-1

[Event "44th Chess Olympiad Open 2022"]
[Site "Chennai"]
[Date "2022.07.30"]
[Round "2.34"]
[White "Tan, Jun Ying"]
[Black "Druska, Juraj"]
[Result "1/2-1/2"]
[WhiteElo "2191"]
[BlackElo "2519"]
[Annotator "ChessBase"]
[PlyCount "67"]
[EventDate "2022.??.??"]
[TimeControl "60"]

1. d4 {[%emt 0:00:05]} Nf6 {[%emt 0:00:15]} 2. c4 {[%emt 0:00:04]} c5 {[%emt 0:
00:00]} 3. d5 {[%emt 0:00:06]} b5 {[%emt 0:00:20]} 4. cxb5 {[%emt 0:00:58]} a6
{[%emt 0:00:09]} 5. bxa6 {[%emt 0:00:07]} g6 {[%emt 0:00:53]} 6. Nc3 {[%emt 0:
00:00]} Bg7 {[%emt 0:00:10]} 7. Nf3 {[%emt 0:00:25]} O-O {[%emt 0:00:12]} 8. g3
{[%emt 0:00:24]} Qa5 {[%emt 0:00:16]} 9. Bd2 {[%emt 0:01:07]} Nxa6 {[%emt 0:00:
00]} 10. Bg2 {[%emt 0:03:02]} d6 {[%emt 0:00:18]} 11. O-O {[%emt 0:01:03]} Qb6
{[%emt 0:00:07]} 12. Qc1 {[%emt 0:15:34]} Nb4 {[%emt 0:04:07]} 13. Bh6 {
[%emt 0:02:27]} Nbxd5 {[%emt 0:14:54]} 14. Nxd5 {[%emt 0:02:58]} Nxd5 {[%emt 0:
00:00]} 15. Bxg7 {[%emt 0:00:13]} Kxg7 {[%emt 0:00:03]} 16. Ne5 {[%emt 0:01:06]
} dxe5 {[%emt 0:17:58]} 17. Bxd5 {[%emt 0:00:08]} Ra4 {[%emt 0:05:49]} 18. Qc3
{[%emt 0:06:14]} Rd4 {[%emt 0:21:45]} 19. Bf3 {[%emt 0:01:22]} Qd6 {[%emt 0:00:
00]} 20. Rfc1 {[%emt 0:14:12]} Ba6 {[%emt 0:03:40]} 21. e3 {[%emt 0:03:51]} Rc4
{[%emt 0:00:32]} 22. Qe1 {[%emt 0:01:14]} Rb4 {[%emt 0:06:31]} 23. b3 {[%emt 0:
00:00]} c4 {[%emt 0:04:01]} 24. bxc4 {[%emt 0:02:11]} Rc8 {[%emt 0:03:31]} 25.
a4 {[%emt 0:11:01]} Rbxc4 {[%emt 0:02:10]} 26. Rxc4 {[%emt 0:00:13]} Rxc4 {
[%emt 0:00:07]} 27. Be2 {[%emt 0:02:27]} Rc6 {[%emt 0:00:28]} 28. Bxa6 {
[%emt 0:00:16]} Rxa6 {[%emt 0:00:02]} 29. a5 {[%emt 0:04:51]} Qc5 {[%emt 0:00:
00]} 30. e4 {[%emt 0:02:14]} Qd4 {[%emt 0:00:55]} 31. Kg2 {[%emt 0:05:57]} Qc5
{[%emt 0:01:34]} 32. Kg1 {[%emt 0:03:11]} Qd4 {[%emt 0:00:29]} 33. Kg2 {
[%emt 0:01:10]} Qc5 {[%emt 0:00:02]} 34. Kg1 {[%emt 0:00:29]} 1/2-1/2

[Event "44th Chess Olympiad Open 2022"]
[Site "Chennai"]
[Date "2022.07.30"]
[Round "2.35"]
[White "Laurusas, Tomas"]
[Black "Tran, Thanh Tu"]
[Result "1-0"]
[WhiteElo "2561"]
[BlackElo "2375"]
[Annotator "TA"]
[PlyCount "67"]
[EventDate "2022.??.??"]
[TimeControl "60"]

{[%evp 15,67,18,40,39,33,36,31,29,20,30,71,45,66,27,91,92,124,108,224,158,258,
260,253,122,125,119,161,166,168,129,233,219,317,307,749,719,964,964,1020,691,
828,847,850,863,1243,1208,29984,819,853,577,883,891,875,673]} 1. d4 {[%emt 0:
00:00]} Nf6 {[%emt 0:01:32]} 2. c4 {[%emt 0:00:07]} e6 {[%emt 0:00:38]} 3. Nf3
{[%emt 0:00:07]} d5 {[%emt 0:00:53]} 4. Nc3 {[%emt 0:00:08]} Bb4 {[%emt 0:00:
00]} 5. e3 {[%emt 0:06:05]} O-O {[%emt 0:04:38]} 6. Bd2 {[%emt 0:02:47]} c6 {
[%emt 0:11:00]} 7. Bd3 {[%emt 0:03:42]} Nbd7 {[%emt 0:15:04]} 8. O-O {[%emt 0:
00:00]} Qe7 {[%emt 0:05:28]} 9. a3 {[%emt 0:24:55] D46: Semi-Slav: 5 e3 Nbd7 6
Bd3, Black avoids the Meran.} Bd6 {[%emt 0:10:56]} 10. c5 {[%emt 0:01:44]} Bc7
{[%emt 0:04:36]} 11. e4 {[%emt 0:00:09] White is slightly better.} dxe4 {
[%emt 0:02:01]} 12. Nxe4 {[%emt 0:00:02] [#]} Nd5 $146 {[%emt 0:01:00]} ({
Predecessor:} 12... Nxe4 13. Bxe4 h6 14. Qe2 Nf6 15. Bd3 Nd5 16. Rac1 f5 17.
Rfe1 Bd7 18. b4 a6 {1-0 (89) Aczel,G (2532)-Amon,N (2296) Gostovanja 2020}) 13.
Bg5 {[%emt 0:08:29][%cal Yd2g5,Yg5h4,Yh4g3]} f6 {[%emt 0:01:16]} 14. Bh4 {
[%emt 0:00:05]} Nf4 {[%emt 0:06:11]} (14... b6 $11) 15. Bg3 {[%emt 0:00:00]} g5
{[%emt 0:00:52]} 16. Bc4 {[%emt 0:01:22]} Re8 {[%emt 0:02:31]} (16... Rf7 $16 {
was worth a try.}) 17. Re1 {[%emt 0:00:44] And now h4 would win.} Nf8 {[%emt 0:
00:14]} (17... Qg7 $16 18. Bxf4 Bxf4) 18. h4 $1 $18 {[%emt 0:03:41]} h6 {
[%emt 0:00:48]} 19. Qc2 {[%emt 0:00:09]} (19. hxg5 $1 $18 hxg5 20. Nh4 $1)
19... Kg7 {[%emt 0:02:36]} 20. Rad1 {[%emt 0:04:30] White is more active.} Bd7
{[%emt 0:06:11] [#]} 21. Qc3 $1 {[%emt 0:05:04]} Nh7 {[%emt 0:01:44]} 22. Ba2 {
[%emt 0:10:46]} Rh8 {[%emt 0:12:00]} (22... Qf7 $16 23. Bb1 Qh5) 23. Qb4 {
[%emt 0:00:33]} b5 {[%emt 0:00:39]} (23... Qd8 {was called for.} 24. Bxf4 (24.
Qxb7 Rb8 $16) 24... Bxf4 25. Qxb7 Bc7) 24. Nd6 {[%emt 0:00:19] Threatens to
win with Nf5+.} Kf8 $2 {[%emt 0:04:38]} (24... a5) 25. Bxf4 {[%emt 0:03:16]}
gxf4 {[%emt 0:00:01]} 26. d5 {[%emt 0:00:08]} e5 {[%emt 0:01:21] [#]} 27. Nxb5
$1 {[%emt 0:00:41]} cxb5 {[%emt 0:01:53]} (27... a5 28. Qe4) 28. d6 {[%emt 0:
00:05]} Bxd6 {[%emt 0:01:06]} 29. Rxd6 {[%emt 0:00:09][%cal Yd1d6,Yd6c6,Yc6c8,
Yc8c7] Black must now prevent c6.} Rc8 {[%emt 0:00:48] Against c6} 30. c6 {
[%emt 0:00:39]} Bxc6 {[%emt 0:00:42] [#]} 31. Rc1 {[%emt 0:00:00]} (31. Nxe5
$142 $1 Kg7 32. Nxc6 Qxe1+ 33. Qxe1 Rhe8 34. Qd2 b4 35. Qxf4 Kh8 36. Qxh6)
31... a5 {[%emt 0:00:52] White is clearly winning.} 32. Rdxc6 {[%emt 0:00:08]}
axb4 {[%emt 0:00:50]} 33. Rxc8+ {[%emt 0:00:06]} Kg7 {[%emt 0:00:04]} 34. R8c7
{[%emt 0:00:06] Weighted Error Value: White=0.45/ Black=0.72} 1-0

[Event "44th Chess Olympiad Open 2022"]
[Site "Chennai"]
[Date "2022.07.30"]
[Round "2.35"]
[White "Pultinevicius, Paulius"]
[Black "Averbukh, Alex"]
[Result "1-0"]
[WhiteElo "2539"]
[BlackElo "2155"]
[Annotator "TA"]
[PlyCount "133"]
[EventDate "2022.??.??"]
[TimeControl "60"]

{[%evp 20,133,68,60,62,59,66,47,48,39,38,52,64,21,20,0,0,-46,0,-15,0,-100,-29,
-29,-30,-86,-33,-90,61,-98,-72,-70,0,0,0,0,0,0,0,0,0,0,0,0,0,0,0,0,0,0,0,0,146,
142,188,188,188,188,188,188,188,188,188,188,188,188,189,188,277,260,293,293,
314,313,402,316,356,337,345,338,295,0,168,168,175,174,169,164,168,138,136,141,
136,136,138,138,156,145,150,141,2784,2644,1347,1356,29977,29975,29978,29979,
29982,29983,29984,29984,29985,29986,29986,29987]} 1. d4 {[%emt 0:00:02]} Nf6 {
[%emt 0:00:07]} 2. c4 {[%emt 0:00:23]} c5 {[%emt 0:00:11]} 3. d5 {[%emt 0:00:
00]} b5 {[%emt 0:00:10]} 4. cxb5 {[%emt 0:00:43]} a6 {[%emt 0:00:08]} 5. e3 {
[%emt 0:00:41]} g6 {[%emt 0:00:26]} 6. Nc3 {[%emt 0:02:12]} d6 {[%emt 0:01:13]}
7. a4 {[%emt 0:02:20]} Bg7 {[%emt 0:00:24]} 8. Bc4 {[%emt 0:12:00]} O-O {
[%emt 0:00:52]} 9. Nge2 {[%emt 0:14:44]} axb5 {[%emt 0:02:57]} 10. Bxb5 {
[%emt 0:01:00]} Bb7 {[%emt 0:09:05]} 11. O-O {[%emt 0:01:17]} Na6 {[%emt 0:00:
00] A57: Benko/Volga Gambit.} 12. e4 {[%emt 0:15:14] [#]} Nc7 $146 {[%emt 0:00:
00]} ({Predecessor:} 12... Qa5 13. h3 Nc7 14. Bc4 Nd7 15. Bg5 Qb4 16. Bd3 Rfe8
17. Nb5 Nxb5 18. Bxb5 Bc8 19. Qd3 {½-½ (64) Gromova,I (2219)-Della Rossa,A 
(1898) Moscow 2008}) 13. Bg5 {[%emt 0:01:20]} Nxb5 {[%emt 0:01:39] White is
slightly better.} 14. axb5 {[%emt 0:00:09]} Rxa1 {[%emt 0:02:10]} 15. Qxa1 {
[%emt 0:00:04]} Qb6 {[%emt 0:00:13]} 16. Qc1 {[%emt 0:00:18]} Bc8 {[%emt 0:00:
00]} 17. Ng3 {[%emt 0:11:51][%cal Ye4e5]} Bd7 {[%emt 0:10:38]} 18. h3 {[%emt 0:
00:00]} (18. Rd1 $11) 18... Rb8 {[%emt 0:02:12]} (18... Bxb5 $15 {should be
considered.} 19. Nxb5 Qxb5) 19. Re1 {[%emt 0:02:22]} Bxb5 {[%emt 0:15:08]} (
19... Qc7 $5 {[%cal Rd7b5]}) 20. Bh6 {[%emt 0:10:22]} (20. e5 $11 dxe5 21. Rxe5
) 20... Nd7 {[%emt 0:12:58]} (20... Bxh6 $17 21. Qxh6 Bd3) 21. Bxg7 $11 {
[%emt 0:04:10]} Kxg7 {[%emt 0:00:08]} 22. Nd1 {[%emt 0:03:40]} (22. Nf5+ $11
gxf5 23. Qg5+ Kh8 24. Qxe7) 22... f6 {[%emt 0:02:29]} (22... Ne5 $17 {aiming
for ...Ba4.} 23. Qc3 Kg8) 23. Ne3 {[%emt 0:01:15]} (23. Re3 $15) 23... Ne5 $2 {
[%emt 0:01:34] [#]} (23... Qa5 $17) 24. Qc3 $2 {[%emt 0:01:24]} (24. Nef5+ $1
$14 {stays ahead.} gxf5 25. Nxf5+ Kf8 26. Qh6+ Ke8 27. Qxh7) 24... Ba6 {
[%emt 0:03:57]} 25. Ra1 {[%emt 0:00:10]} Bc8 {[%emt 0:01:53]} (25... Bd3 $15
26. Ra3 c4) 26. f4 {[%emt 0:00:12]} Nf7 {[%emt 0:00:46]} 27. Nc4 {[%emt 0:00:
00]} Qb4 {[%emt 0:02:35]} 28. Ra7 {[%emt 0:04:12]} Qxc3 {[%emt 0:03:13]} 29.
bxc3 {[%emt 0:00:03]} Rb7 {[%emt 0:00:25]} 30. Ra3 {[%emt 0:02:28]} Bd7 {
[%emt 0:04:10]} 31. Kf2 {[%emt 0:00:22]} h5 {[%emt 0:01:45]} 32. Nf1 {[%emt 0:
00:00]} g5 {[%emt 0:01:45]} 33. fxg5 {[%emt 0:03:45]} Nxg5 {[%emt 0:00:07]} 34.
Nfd2 {[%emt 0:00:23]} Bb5 {[%emt 0:01:45] And now ...Bxc4 would win.} 35. Ne3 {
[%emt 0:00:34]} Bd3 {[%emt 0:02:46]} (35... Bd7 $11) 36. Nf5+ $16 {[%emt 0:00:
00]} Kf7 {[%emt 0:00:39]} (36... Kf8 $16) 37. Ke3 $18 {[%emt 0:00:16]} Bb5 {
[%emt 0:02:08]} 38. h4 {[%emt 0:01:24]} Nh7 {[%emt 0:00:12]} 39. Rb3 $1 {
[%emt 0:01:56] Nc4 is the strong threat.} Ba6 {[%emt 0:00:15] Inhibits Nc4.}
40. Rxb7 {[%emt 0:00:10]} Bxb7 {[%emt 0:00:06] Endgame KBN-KNN} 41. Nf1 $1 {
[%emt 0:30:25]} Bc8 {[%emt 0:30:41]} 42. N1g3 {[%emt 0:00:20]} Nf8 {[%emt 0:01:
50]} 43. Nxh5 {[%emt 0:00:05]} Ng6 {[%emt 0:00:18]} (43... Bxf5 {was worth a
try.} 44. exf5 Nd7) 44. Nhg3 {[%emt 0:02:54]} Ne5 {[%emt 0:00:57]} 45. h5 {
[%emt 0:00:40]} Nc4+ {[%emt 0:01:07]} 46. Kf4 {[%emt 0:01:16]} e6 {[%emt 0:01:
38]} 47. Ne3 {[%emt 0:00:00]} Ne5 {[%emt 0:00:00]} 48. dxe6+ {[%emt 0:00:00]}
Kxe6 {[%emt 0:00:00]} 49. Ngf5 {[%emt 0:00:00]} Bb7 {[%emt 0:00:00]} 50. Ng3 $2
{[%emt 0:00:00]} (50. Nd5 $18) 50... Nd3+ $2 {[%emt 0:00:00]} (50... Bc8 $1 $11
{and Black is okay.}) 51. Kg4 {[%emt 0:00:00]} Ne5+ {[%emt 0:00:00]} 52. Kh4 {
[%emt 0:00:00]} Nf7 {[%emt 0:00:00] [#]} 53. Ng4 $1 {[%emt 0:00:00]} d5 {
[%emt 0:00:00]} 54. exd5+ {[%emt 0:00:00]} Bxd5 {[%emt 0:00:00]} 55. Ne3 {
[%emt 0:00:00]} Bb7 {[%emt 0:00:00]} 56. Ne2 {[%emt 0:00:00]} Ke5 {[%emt 0:00:
00]} 57. Ng4+ {[%emt 0:02:31]} Kf5 {[%emt 0:03:06] [#]} 58. Nc1 $1 {[%emt 0:01:
05]} Ke6 {[%emt 0:04:09]} 59. Nd3 {[%emt 0:00:08]} c4 {[%emt 0:00:00] A
mistake that costs the game.} (59... Kd6 $16 60. Nxf6 Bxg2) 60. Nc5+ {[%emt 0:
00:02]} Kd5 {[%emt 0:01:30]} 61. Nxb7 {[%emt 0:00:10]} Kc6 {[%emt 0:00:50]} 62.
Na5+ {[%emt 0:01:19] White mates.} Kb5 {[%emt 0:00:06] [#]} 63. Nxf6 $1 {
[%emt 0:00:15]} Kxa5 {[%emt 0:00:07]} (63... Ne5 64. Nb7) 64. g4 {[%emt 0:00:
05][%cal Yg2g4,Yg4g5,Yg5g6]} Ka4 {[%emt 0:00:14]} 65. g5 {[%emt 0:00:05]} Kb3 {
[%emt 0:00:44]} 66. g6 {[%emt 0:00:12]} Nd6 {[%emt 0:00:00]} 67. Nd5 {[%emt 0:
00:21] Weighted Error Value: White=0.22 (precise) / Black=0.31} 1-0

[Event "44th Chess Olympiad Open 2022"]
[Site "Chennai"]
[Date "2022.07.30"]
[Round "2.35"]
[White "Kojima, Shinya"]
[Black "Stremavicius, Titas"]
[Result "1/2-1/2"]
[WhiteElo "2346"]
[BlackElo "2532"]
[Annotator "TA"]
[PlyCount "147"]
[EventDate "2022.??.??"]
[TimeControl "60"]

{[%evp 9,147,31,33,44,40,40,43,41,40,28,41,43,32,33,38,31,29,0,18,0,0,0,10,14,
0,0,0,0,0,0,13,12,15,12,14,5,11,0,0,0,0,0,21,32,22,7,24,8,17,0,28,0,38,44,56,
44,48,9,68,19,34,0,15,9,10,-6,0,0,0,0,0,-27,-37,-104,-37,-122,-45,-73,-16,-77,
-79,-76,-45,-164,-164,-154,-160,-162,-153,-138,-93,-107,-77,-81,-77,-78,-71,
-109,-109,-130,-73,-100,-99,-106,-97,-145,-128,-130,-100,-100,-94,-104,-108,
-120,-79,-112,-79,-77,0,0,0,0,63,63,53,40,44,52,49,0,0,0,0,0,0,0,0,0,0,0]} 1.
e4 {[%emt 0:00:05]} c5 {[%emt 0:00:30]} 2. Nf3 {[%emt 0:00:09]} Nc6 {[%emt 0:
00:00]} 3. Bb5 {[%emt 0:02:35][%cal Yf1b5,Yb5a4,Ya4b3]} e5 {[%emt 0:00:00]} 4.
O-O {[%emt 0:00:00]} Bd6 {[%emt 0:00:04]} 5. c3 {[%emt 0:00:00]} a6 {[%emt 0:
00:07]} 6. Ba4 {[%emt 0:00:00] B30: Sicilian: 2...Nc6 3 Bb5, lines without ...
g6.} b5 {[%emt 0:00:09]} 7. Bb3 {[%emt 0:00:08]} c4 {[%emt 0:00:39]} 8. Bc2 {
[%emt 0:00:09] White is slightly better.} Nf6 {[%emt 0:00:09]} 9. d4 {[%emt 0:
00:54]} cxd3 $1 {[%emt 0:00:22]} 10. Qxd3 {[%emt 0:00:43]} Bc7 {[%emt 0:04:20]
[#]} 11. Bg5 $146 {[%emt 0:01:22]} ({Predecessor:} 11. Rd1 h6 12. b4 a5 13. Na3
axb4 14. Nxb5 O-O 15. Be3 Bb6 16. c4 Ng4 17. c5 Nxe3 18. Qxe3 {½-½ (103)
Mishra,A (2505)-Stremavicius,T (2520) Saint Louis 2022}) 11... h6 {[%emt 0:00:
39]} 12. Bxf6 {[%emt 0:01:25]} Qxf6 {[%emt 0:00:08]} 13. Bb3 {[%emt 0:02:37]}
Rb8 {[%emt 0:03:43]} 14. Nbd2 {[%emt 0:06:34][%cal Yb1d2,Yd2f1,Yf1e3]} O-O {
[%emt 0:08:30]} 15. Rfd1 {[%emt 0:04:54]} Rd8 {[%emt 0:00:00]} 16. Nf1 {
[%emt 0:03:04]} d6 {[%emt 0:00:44]} 17. Ne3 {[%emt 0:03:20] Nd5 is the strong
threat.} Ne7 {[%emt 0:00:07]} 18. Ne1 {[%emt 0:10:38]} Bb6 {[%emt 0:08:30]} 19.
N1c2 {[%emt 0:05:12]} g6 {[%emt 0:14:49]} 20. Rd2 {[%emt 0:00:00]} a5 {[%emt 0:
01:09]} 21. a3 {[%emt 0:06:07]} Kg7 {[%emt 0:01:33]} 22. Qe2 {[%emt 0:04:44]}
h5 {[%emt 0:00:44]} 23. h3 {[%emt 0:01:56]} Qg5 {[%emt 0:00:00]} 24. Kh1 {
[%emt 0:02:47]} ({Much worse is} 24. Qf3 f5 25. exf5 gxf5 $15) 24... Qh4 {
[%emt 0:00:11]} 25. Nd5 {[%emt 0:11:25]} Be6 {[%emt 0:00:50]} 26. Nxe7 {
[%emt 0:11:26]} Qxe7 {[%emt 0:02:15]} ({But not} 26... Bxb3 27. Nc6 $16) 27.
Bd5 {[%emt 0:00:28]} Ba7 {[%emt 0:03:28]} 28. Rad1 {[%emt 0:04:03]} Bd7 {
[%emt 0:08:11]} 29. Ba2 {[%emt 0:02:05]} Bc6 {[%emt 0:00:30]} 30. Bd5 {[%emt 0:
00:00]} Be8 {[%emt 0:00:07]} 31. Rd3 {[%emt 0:04:27]} Rbc8 {[%emt 0:02:46]
[%cal Yb5b4]} 32. Qd2 {[%emt 0:02:33]} Bd7 {[%emt 0:05:04]} 33. Ba2 {[%emt 0:
00:00]} Bb8 {[%emt 0:00:12]} ({Better is} 33... Qh4 $11) 34. Ne3 {[%emt 0:00:
00]} (34. Rg3 $14 {might be stronger.}) 34... Qh4 $11 {[%emt 0:00:16]} 35. Bd5
{[%emt 0:03:04]} Rf8 {[%emt 0:01:58]} 36. Nf1 {[%emt 0:02:19]} Ba7 {[%emt 0:00:
00]} 37. Ne3 {[%emt 0:01:08]} Rcd8 {[%emt 0:01:15]} 38. Qe2 {[%emt 0:00:32]} b4
{[%emt 0:02:31]} 39. axb4 {[%emt 0:00:32]} axb4 {[%emt 0:00:02]} 40. c4 {
[%emt 0:00:31]} Bc5 {[%emt 0:02:45]} 41. Kg1 {[%emt 0:05:52] [#]} (41. Kh2 $15)
41... Rc8 {[%emt 0:09:45]} (41... f5 $1 $17 {[%cal Rf5f4] White must now
prevent ...f4.} 42. exf5 e4) 42. Ra1 {[%emt 0:01:50] [#]} ({White should play} 
42. b3 $15) 42... Be6 {[%emt 0:06:58]} (42... f5 $1 $17 {[%cal Rf5f4] Strongly
threatening ...f4.} 43. exf5 e4 44. f6+ Rxf6) 43. Qc2 {[%emt 0:16:09]} Bd4 {
[%emt 0:03:06]} (43... Bxd5 $17 44. Rxd5 b3) 44. Qd2 {[%emt 0:03:49]} (44. Rad1
$11 {keeps the balance.}) 44... Bxd5 $17 {[%emt 0:03:37]} 45. Rxd4 {[%emt 0:00:
00]} exd4 {[%emt 0:02:25]} 46. Qxd4+ {[%emt 0:00:04]} (46. Nxd5 $15 Rxc4 47. b3
) 46... Qf6 $19 {[%emt 0:00:24]} 47. Qxf6+ {[%emt 0:00:13]} Kxf6 {[%emt 0:00:
00]} 48. Nxd5+ {[%emt 0:02:13] Endgame KRR-KRN} Ke5 {[%emt 0:00:08]} 49. b3 {
[%emt 0:00:49]} Kxe4 {[%emt 0:02:36]} 50. Nxb4 {[%emt 0:00:20]} Rb8 {[%emt 0:
03:34]} 51. Re1+ {[%emt 0:00:19]} Kf5 {[%emt 0:00:01][%cal Ye4f5,Yf5f6,Yf6e6,
Ye6e7,Ye7d7]} 52. Nc6 {[%emt 0:00:44]} Rb6 {[%emt 0:00:14]} 53. Nd4+ {[%emt 0:
00:58]} Kf6 {[%emt 0:00:05][%cal Yd6d5]} 54. Nb5 {[%emt 0:00:38]} Rc8 {[%emt 0:
02:17]} (54... d5 $142 55. Nc3 Rxb3 56. Nxd5+ Kg7) 55. Rd1 {[%emt 0:00:32]} Ke6
{[%emt 0:00:14]} 56. Rd3 {[%emt 0:00:17]} Rc5 {[%emt 0:00:00]} 57. Nd4+ {
[%emt 0:00:43]} (57. Kh2 $142) 57... Ke7 {[%emt 0:01:38]} 58. Nc2 {[%emt 0:00:
22]} Ra6 {[%emt 0:01:22][%cal Yd6d5]} 59. Ne3 {[%emt 0:00:36]} Ra3 {[%emt 0:00:
32]} 60. g3 {[%emt 0:00:30]} Re5 {[%emt 0:02:49]} 61. h4 {[%emt 0:00:23]} Rea5
{[%emt 0:03:22]} 62. Kg2 {[%emt 0:00:33]} Kd7 {[%emt 0:00:00]} 63. Nd5 {
[%emt 0:00:28]} Ra6 {[%emt 0:00:26] Inhibits Nb6+.} (63... Ra7 $17 64. Rf3 Kc6
65. Nb4+ Kb6) 64. Rf3 $1 $11 {[%emt 0:00:28]} f5 {[%emt 0:00:00]} 65. Nf4 {
[%emt 0:00:31]} d5 {[%emt 0:02:01]} ({Black should try} 65... Rb6 $11) 66. Nxd5
$14 {[%emt 0:00:20]} Re6 {[%emt 0:00:04]} 67. Rd3 {[%emt 0:00:46]} Kc6 {
[%emt 0:00:16]} 68. Nf4 {[%emt 0:00:29]} Rd6 {[%emt 0:01:12]} 69. Rxd6+ {
[%emt 0:00:10]} (69. Re3 $14) 69... Kxd6 $11 {[%emt 0:00:01] The position is
equal.} 70. Nxg6 {[%emt 0:00:06]} Rxb3 {[%emt 0:00:06]} 71. Nf4 {[%emt 0:00:19]
} Rc3 {[%emt 0:00:24]} 72. Nxh5 {[%emt 0:00:22]} Rxc4 {[%emt 0:00:06]} 73. Nf4
{[%emt 0:00:32]} Ke5 {[%emt 0:00:07]} 74. Ng6+ {[%emt 0:00:55] White happily
takes the draw. Weighted Error Value: White=0.16 (very precise) /Black=0.14 
(very precise)} 1/2-1/2